bitfinex/quotes_BTCUSD_20240915
["timestamp","ask_amount","ask_price","bid_price","bid_amount"]
[1726399134120,0.173346,60068.0,60067.0,0.07189958]
[1726399136545,0.173346,60068.0,60067.0,0.07189753]
[1726399137292,0.19947425,60068.0,60067.0,0.07189753]
[1726399137493,0.173346,60068.0,60067.0,0.07189753]
[1726399137766,0.19947424,60068.0,60067.0,0.12183098]
[1726399138011,0.19947424,60068.0,60067.0,0.07189753]
[1726399139246,0.19947424,60068.0,60067.0,0.12183098]
[1726399140189,0.19947424,60068.0,60067.0,0.07189753]
[1726399140449,0.19947424,60068.0,60067.0,0.09886159]
[1726399140692,0.19947424,60068.0,60067.0,0.07188591]
[1726399141170,0.19947424,60068.0,60067.0,0.07187073]
[1726399141412,0.19947424,60068.0,60067.0,0.12180418]
[1726399142339,0.19947424,60068.0,60067.0,0.07187073]
[1726399142570,0.19947424,60068.0,60067.0,0.12183634]
[1726399143301,0.19947424,60068.0,60067.0,0.07187073]
[1726399143543,0.19947424,60068.0,60067.0,0.12184272]
[1726399144062,0.19947424,60068.0,60067.0,0.07187073]
[1726399144534,0.19947424,60068.0,60067.0,0.12185135]
[1726399144766,0.19947424,60068.0,60067.0,0.12185181]
[1726399145000,0.19947424,60068.0,60067.0,0.14677091]
[1726399145246,0.19947424,60068.0,60067.0,0.38144865]
[1726399145461,0.19947424,60068.0,60067.0,0.38164437]
[1726399146446,0.173346,60068.0,60067.0,0.40652501]
[1726399146668,0.173346,60068.0,60067.0,0.07187073]
[1726399146915,0.173346,60068.0,60067.0,0.4067532]
[1726399147142,0.173346,60068.0,60067.0,0.30673783]
[1726399147367,0.173346,60068.0,60067.0,0.40675153]
[1726399147584,0.173346,60068.0,60067.0,0.43175704]
[1726399148730,0.173346,60068.0,60067.0,0.30673783]
[1726399148961,0.173346,60068.0,60067.0,0.43177309]
[1726399149195,0.173346,60068.0,60067.0,0.30673783]
[1726399149439,0.173346,60068.0,60067.0,0.43177314]
[1726399150139,0.173346,60068.0,60067.0,0.30673783]
[1726399150605,0.173346,60068.0,60067.0,0.43177469]
[1726399150849,0.173346,60068.0,60067.0,0.43177321]
[1726399151123,0.173346,60068.0,60067.0,0.30673783]
[1726399151356,0.173346,60068.0,60067.0,0.43174217]
[1726399151596,0.173346,60068.0,60067.0,0.30661326]
[1726399152076,0.173346,60068.0,60067.0,0.43165173]
[1726399154240,0.173346,60068.0,60067.0,0.30661326]
[1726399154710,0.173346,60068.0,60067.0,0.40664593]
[1726399154903,0.173346,60068.0,60067.0,0.30661326]
[1726399155400,0.173346,60068.0,60067.0,0.43165173]
[1726399155635,0.173346,60068.0,60067.0,0.30661326]
[1726399156113,0.173346,60068.0,60067.0,0.40664619]
[1726399156557,0.173346,60068.0,60067.0,0.30661326]
[1726399157044,0.16988182,60068.0,60067.0,0.40664661]
[1726399157731,0.19600997,60068.0,60067.0,0.30661326]
[1726399158171,0.19600997,60068.0,60067.0,0.38163998]
[1726399158398,0.19600997,60068.0,60067.0,0.35873107]
[1726399158618,0.19600997,60068.0,60067.0,0.3816319]
[1726399158834,0.19600997,60068.0,60067.0,0.40453471]
[1726399162000,0.19600997,60068.0,60067.0,0.16976026]
[1726399162683,0.19600997,60068.0,60067.0,0.09473765]
[1726399162903,0.19600997,60068.0,60067.0,0.12184659]
[1726399163358,0.19765597,60068.0,60067.0,0.07182897]
[1726399163573,0.19765597,60068.0,60067.0,0.14480259]
[1726399164232,0.17152782,60068.0,60067.0,0.09478504]
[1726399164459,0.17152782,60068.0,60067.0,0.12184912]
[1726399165782,0.17152782,60068.0,60067.0,0.07182897]
[1726399166194,0.17152782,60068.0,60067.0,0.04892814]
[1726399166435,0.17152782,60068.0,60067.0,0.02592814]
[1726399166845,0.17352782,60068.0,60067.0,0.02592814]
[1726399167083,0.17152782,60068.0,60067.0,0.02592814]
[1726399167321,0.19765706,60068.0,60067.0,0.02592814]
[1726399167538,0.17352782,60068.0,60067.0,0.02592814]
[1726399167753,0.19765729,60068.0,60067.0,0.02592814]
[1726399167970,0.19965729,60068.0,60067.0,0.02592814]
[1726399168189,0.20381962,60068.0,60067.0,0.02592814]
[1726399168426,0.19765729,60068.0,60067.0,0.02592814]
[1726399169117,0.19765729,60068.0,60067.0,0.003823]
[1726399169345,0.20181962,60068.0,60067.0,0.003823]
[1726399169805,0.20381962,60068.0,60067.0,0.003823]
[1726399170255,0.20281962,60068.0,60067.0,0.001823]
[1726399170480,0.20781962,60068.0,60067.0,0.001823]
[1726399171203,0.20281962,60068.0,60067.0,0.001823]
[1726399171654,0.20281962,60068.0,60067.0,0.000823]
[1726399171878,0.21981962,60068.0,60067.0,0.000823]
[1726399172099,0.20565729,60068.0,60067.0,0.000823]
[1726399172566,0.21465729,60068.0,60067.0,0.000823]
[1726399173346,0.20565729,60068.0,60067.0,0.000823]
[1726399174069,0.21165729,60068.0,60067.0,0.000823]
[1726399174549,0.20565729,60068.0,60067.0,0.000823]
[1726399174836,0.19665729,60068.0,60067.0,0.000823]
[1726399175078,0.20565729,60068.0,60067.0,0.000823]
[1726399175308,0.20265729,60068.0,60067.0,0.000823]
[1726399175818,0.20465729,60068.0,60067.0,0.000823]
[1726399176109,0.20265729,60068.0,60067.0,0.000823]
[1726399176331,0.19965729,60068.0,60067.0,0.023823]
[1726399176866,0.10555729,60068.0,60067.0,0.04381221]
[1726399177346,0.10655729,60068.0,60067.0,0.04381221]
[1726399178065,0.03177547,60068.0,60067.0,0.04381221]
[1726399179063,0.02877547,60068.0,60067.0,0.04381221]
[1726399179589,0.03177547,60068.0,60067.0,0.04381221]
[1726399179839,0.03277547,60068.0,60067.0,0.04381221]
[1726399180108,0.03377547,60068.0,60067.0,0.04581221]
[1726399180350,0.03377547,60068.0,60067.0,0.09579958]
[1726399180602,0.03377547,60068.0,60067.0,0.37811836]
[1726399180603,0.03277547,60068.0,60067.0,0.37811836]
[1726399180841,0.03377547,60068.0,60067.0,0.06877165]
[1726399181283,0.02777547,60068.0,60067.0,0.06677165]
[1726399181502,0.02777547,60068.0,60067.0,0.14175271]
[1726399181732,0.02777547,60068.0,60067.0,0.14275271]
[1726399181959,0.02777547,60068.0,60067.0,0.40068976]
[1726399182450,0.02777547,60068.0,60067.0,0.37463794]
[1726399182670,0.02877547,60068.0,60067.0,0.29971502]
[1726399182886,0.02877547,60068.0,60067.0,0.37563912]
[1726399183110,0.02877547,60068.0,60067.0,0.40563912]
[1726399183353,0.02877547,60068.0,60067.0,0.49068345]
[1726399183596,0.02877547,60068.0,60067.0,0.34275558]
[1726399183890,0.02877547,60068.0,60067.0,0.36571239]
[1726399184368,0.02877547,60068.0,60067.0,0.49055567]
[1726399185063,0.02877547,60068.0,60067.0,0.36571239]
[1726399187085,0.002646,60068.0,60067.0,0.36571239]
[1726399187308,0.002646,60068.0,60067.0,0.36600399]
[1726399189197,0.002646,60068.0,60067.0,0.57762853]
[1726399189425,0.002646,60068.0,60067.0,0.36600399]
[1726399189884,0.001646,60068.0,60067.0,0.36600399]
[1726399190152,0.02777128,60068.0,60067.0,0.36600399]
[1726399190376,0.001646,60076.0,60067.0,0.36600399]
[1726399190377,0.001646,60076.0,60075.0,0.03]
[1726399190607,0.001646,60076.0,60075.0,0.12784865]
[1726399190844,0.001646,60076.0,60075.0,0.14778541]
[1726399191073,0.001646,60076.0,60075.0,0.32799429]
[1726399191325,0.001646,60076.0,60075.0,0.4277925]
[1726399191555,0.001646,60076.0,60075.0,0.32799429]
[1726399192018,0.002646,60076.0,60075.0,0.33199429]
[1726399192239,0.002646,60076.0,60075.0,0.40682499]
[1726399192456,0.002646,60076.0,60075.0,0.38357658]
[1726399192928,0.003646,60076.0,60075.0,0.39457658]
[1726399193376,0.003646,60076.0,60075.0,0.08793676]
[1726399194755,0.003646,60076.0,60075.0,0.13779757]
[1726399194979,0.003646,60076.0,60075.0,0.08793676]
[1726399195460,0.003646,60076.0,60075.0,0.13779024]
[1726399197779,0.003646,60076.0,60075.0,0.08793676]
[1726399198006,0.02976999,60076.0,60075.0,0.13779024]
[1726399198233,0.02976999,60076.0,60075.0,0.08793676]
[1726399198698,0.02976999,60076.0,60075.0,0.13779024]
[1726399199125,0.003646,60076.0,60075.0,0.13779024]
[1726399199385,0.003646,60076.0,60075.0,0.08793676]
[1726399203280,0.02977177,60076.0,60075.0,0.08793676]
[1726399204045,0.02977177,60076.0,60075.0,0.17275086]
[1726399204569,0.02977177,60076.0,60075.0,0.19765791]
[1726399204801,0.02877177,60076.0,60075.0,0.16873737]
[1726399205028,0.02877177,60076.0,60075.0,0.16173737]
[1726399205277,0.02877177,60076.0,60075.0,0.11693676]
[1726399205278,0.02977177,60076.0,60075.0,0.11693676]
[1726399205750,0.02877177,60076.0,60075.0,0.16173152]
[1726399205992,0.02877177,60076.0,60075.0,0.11193676]
[1726399206223,0.02977177,60076.0,60075.0,0.11693676]
[1726399206761,0.02977177,60076.0,60075.0,0.13023676]
[1726399207213,0.003646,60076.0,60075.0,0.13023676]
[1726399209652,0.003646,60076.0,60075.0,0.18001574]
[1726399210582,0.0297717,60076.0,60075.0,0.18001574]
[1726399211003,0.0297717,60076.0,60075.0,0.16671574]
[1726399212756,0.0297717,60076.0,60075.0,0.16671132]
[1726399215490,0.0297717,60076.0,60075.0,0.17859935]
[1726399216174,0.0826,60082.0,60081.0,0.053]
[1726399216580,0.0826,60082.0,60081.0,0.06932009]
[1726399218302,0.0836,60082.0,60081.0,0.07432009]
[1726399218962,0.0836,60082.0,60081.0,0.07732009]
[1726399221505,0.0836,60082.0,60081.0,0.12712484]
[1726399221747,0.085246,60082.0,60081.0,0.12712484]
[1726399222512,0.085246,60082.0,60081.0,0.07732009]
[1726399222740,0.085246,60082.0,60081.0,0.12718995]
[1726399223179,0.085246,60082.0,60081.0,0.07732009]
[1726399223423,0.085246,60082.0,60081.0,0.15202722]
[1726399224527,0.085246,60082.0,60081.0,0.30979572]
[1726399225506,0.11136878,60082.0,60081.0,0.40940523]
[1726399226481,0.11136878,60082.0,60081.0,0.4096283]
[1726399226713,0.11136878,60082.0,60081.0,0.40962923]
[1726399226945,0.11136878,60082.0,60081.0,0.30979572]
[1726399227415,0.11136878,60082.0,60081.0,0.43430761]
[1726399227899,0.11136878,60082.0,60081.0,0.49627981]
[1726399228368,0.11136878,60082.0,60081.0,0.3097867]
[1726399228801,0.11136878,60082.0,60081.0,0.37146296]
[1726399229035,0.20756878,60082.0,60081.0,0.43463144]
[1726399229287,0.20756878,60082.0,60081.0,0.40966551]
[1726399229518,0.20756878,60082.0,60081.0,0.07732009]
[1726399229774,0.20756878,60082.0,60081.0,0.15224294]
[1726399230120,0.20756878,60082.0,60081.0,0.38522863]
[1726399230225,0.181446,60082.0,60081.0,0.38522863]
[1726399230472,0.181446,60082.0,60081.0,0.31030578]
[1726399230941,0.181446,60082.0,60081.0,0.41019894]
[1726399232411,0.180446,60082.0,60081.0,0.40219894]
[1726399232655,0.180446,60082.0,60081.0,0.40519894]
[1726399232895,0.180446,60082.0,60081.0,0.40219894]
[1726399233367,0.180446,60082.0,60081.0,0.38525475]
[1726399233368,0.181446,60082.0,60081.0,0.38525475]
[1726399233591,0.181446,60082.0,60081.0,0.41019894]
[1726399234146,0.181446,60082.0,60081.0,0.31030578]
[1726399234392,0.181446,60082.0,60081.0,0.31430578]
[1726399234883,0.181446,60082.0,60081.0,0.43515052]
[1726399235103,0.181446,60082.0,60081.0,0.32030578]
[1726399235104,0.182446,60082.0,60081.0,0.32030578]
[1726399235350,0.182446,60082.0,60081.0,0.44515052]
[1726399237394,0.20856873,60082.0,60081.0,0.44515052]
[1726399237625,0.182446,60082.0,60081.0,0.44515052]
[1726399239632,0.182446,60082.0,60081.0,0.32030578]
[1726399240059,0.182446,60082.0,60081.0,0.44528728]
[1726399240519,0.182446,60082.0,60081.0,0.41528728]
[1726399240740,0.182446,60082.0,60081.0,0.29030578]
[1726399241657,0.182446,60082.0,60081.0,0.32030578]
[1726399241873,0.20856891,60082.0,60081.0,0.44528728]
[1726399242088,0.20856891,60082.0,60081.0,0.32030578]
[1726399242312,0.20856891,60082.0,60081.0,0.32049648]
[1726399242753,0.182446,60082.0,60081.0,0.44549077]
[1726399242995,0.182446,60082.0,60081.0,0.32049648]
[1726399244324,0.086246,60082.0,60081.0,0.32049648]
[1726399251393,0.001646,60086.0,60085.0,0.088]
[1726399251613,0.001646,60086.0,60085.0,0.38285575]
[1726399251827,0.001646,60086.0,60085.0,0.39914963]
[1726399252076,0.001646,60086.0,60085.0,0.40166979]
[1726399252290,0.001646,60086.0,60085.0,0.95307625]
[1726399252509,0.002646,60086.0,60085.0,0.73764496]
[1726399252728,0.002646,60086.0,60085.0,0.40766979]
[1726399252946,0.002646,60086.0,60085.0,0.40866979]
[1726399253163,0.003646,60086.0,60085.0,0.41666979]
[1726399254030,0.002646,60086.0,60085.0,0.40966979]
[1726399254533,0.001646,60086.0,60085.0,0.40166979]
[1726399254760,0.001646,60086.0,60085.0,0.41566979]
[1726399254761,0.002646,60086.0,60085.0,0.41566979]
[1726399254970,0.003646,60086.0,60085.0,0.42966979]
[1726399255183,0.002646,60086.0,60085.0,0.41566979]
[1726399255411,0.003646,60086.0,60085.0,0.42966979]
[1726399255671,0.002646,60086.0,60085.0,0.41566979]
[1726399256398,0.002646,60086.0,60085.0,0.40166979]
[1726399256399,0.001646,60086.0,60085.0,0.40166979]
[1726399256641,0.002646,60086.0,60085.0,0.42966979]
[1726399256869,0.02611787,60089.0,60085.0,0.42966979]
[1726399256870,0.00163236,60089.0,60088.0,0.065]
[1726399257136,0.001646,60090.0,60089.0,0.065]
[1726399257375,0.001646,60090.0,60089.0,0.32343361]
[1726399258791,0.001646,60090.0,60089.0,0.33743361]
[1726399259027,0.001646,60090.0,60089.0,0.31443361]
[1726399259294,0.184346,60090.0,60089.0,0.31443361]
[1726399259830,0.184346,60090.0,60089.0,0.41427771]
[1726399260299,0.184346,60090.0,60089.0,0.43727771]
[1726399260533,0.184346,60090.0,60089.0,0.45127771]
[1726399260790,0.184346,60090.0,60089.0,0.45156643]
[1726399261063,0.184346,60090.0,60089.0,0.45440663]
[1726399261283,0.184346,60090.0,60089.0,0.35456496]
[1726399261524,0.184346,60090.0,60089.0,0.45440663]
[1726399262656,0.184346,60090.0,60089.0,0.35456496]
[1726399262876,0.184346,60090.0,60089.0,0.47762739]
[1726399263096,0.184346,60090.0,60089.0,0.50259539]
[1726399263314,0.184346,60090.0,60089.0,0.3777933]
[1726399263561,0.184346,60090.0,60089.0,0.47762105]
[1726399264231,0.184346,60090.0,60089.0,0.3777933]
[1726399264934,0.184346,60090.0,60089.0,0.47761555]
[1726399265137,0.184346,60090.0,60089.0,0.24189156]
[1726399265363,0.184346,60090.0,60089.0,0.47728433]
[1726399266730,0.001646,60090.0,60089.0,0.47444413]
[1726399266943,0.001646,60090.0,60089.0,0.51282735]
[1726399268545,0.001646,60090.0,60089.0,0.51282894]
[1726399268993,0.001646,60090.0,60089.0,0.48959901]
[1726399269214,0.001646,60090.0,60089.0,0.51282895]
[1726399269433,0.001646,60090.0,60089.0,0.38805018]
[1726399270096,0.001646,60090.0,60089.0,0.48558427]
[1726399270323,0.001646,60090.0,60089.0,0.48842447]
[1726399271294,0.001646,60090.0,60089.0,0.38862617]
[1726399271524,0.001646,60090.0,60089.0,0.48842447]
[1726399271744,0.001646,60090.0,60089.0,0.48841722]
[1726399272651,0.001646,60090.0,60089.0,0.38863373]
[1726399272873,0.001646,60090.0,60089.0,0.44967334]
[1726399273103,0.001646,60090.0,60089.0,0.46367334]
[1726399273545,0.001646,60090.0,60089.0,0.37482956]
[1726399273771,0.096346,60090.0,60089.0,0.38882956]
[1726399274002,0.096346,60090.0,60089.0,0.44043391]
[1726399274235,0.096346,60090.0,60089.0,0.4636614]
[1726399274461,0.096346,60090.0,60089.0,0.4496614]
[1726399274696,0.097346,60090.0,60089.0,0.23033701]
[1726399274949,0.096346,60090.0,60089.0,0.44953217]
[1726399275214,0.096346,60090.0,60089.0,0.46253217]
[1726399275450,0.097346,60090.0,60089.0,0.38769032]
[1726399275687,0.097346,60090.0,60089.0,0.46253327]
[1726399276583,0.097346,60090.0,60089.0,0.43930578]
[1726399276831,0.097346,60090.0,60089.0,0.22925425]
[1726399277064,0.097346,60090.0,60089.0,0.46250641]
[1726399277511,0.097346,60090.0,60089.0,0.38766346]
[1726399277950,0.097346,60090.0,60089.0,0.4625123]
[1726399279579,0.097346,60090.0,60089.0,0.48747273]
[1726399280336,0.097346,60090.0,60089.0,0.38768168]
[1726399281245,0.097346,60090.0,60089.0,0.46254317]
[1726399281487,0.173046,60090.0,60089.0,0.38784037]
[1726399281928,0.173046,60090.0,60089.0,0.46270666]
[1726399282379,0.173046,60090.0,60089.0,0.38784037]
[1726399283291,0.173046,60090.0,60089.0,0.32784037]
[1726399283511,0.173046,60090.0,60089.0,0.14707873]
[1726399284220,0.173046,60090.0,60089.0,0.12391688]
[1726399284470,0.173046,60090.0,60089.0,0.14702267]
[1726399284720,0.173046,60090.0,60089.0,0.38035075]
[1726399284932,0.173046,60090.0,60089.0,0.17002267]
[1726399285151,0.173046,60090.0,60089.0,0.14507499]
[1726399286048,0.173046,60090.0,60089.0,0.09515187]
[1726399286288,0.173046,60090.0,60089.0,0.14507884]
[1726399286779,0.173046,60090.0,60089.0,0.14509863]
[1726399286999,0.19916543,60090.0,60089.0,0.14509863]
[1726399287661,0.19916543,60090.0,60089.0,0.09517166]
[1726399288781,0.19916543,60090.0,60089.0,0.17004246]
[1726399289003,0.19916543,60090.0,60089.0,0.14704246]
[1726399289286,0.19916543,60090.0,60089.0,0.12211566]
[1726399289536,0.19916543,60090.0,60089.0,0.12211628]
[1726399289771,0.19916543,60090.0,60089.0,0.07217166]
[1726399290461,0.19916543,60090.0,60089.0,0.09517166]
[1726399290685,0.19916543,60090.0,60089.0,0.09520041]
[1726399290914,0.19916543,60090.0,60089.0,0.11835485]
[1726399292287,0.19916543,60090.0,60089.0,0.42699299]
[1726399293675,0.19916543,60090.0,60089.0,0.35207606]
[1726399294150,0.173046,60090.0,60089.0,0.35207606]
[1726399294359,0.173046,60090.0,60089.0,0.11835485]
[1726399294579,0.173046,60090.0,60089.0,0.4519689]
[1726399294812,0.173046,60090.0,60089.0,0.42881446]
[1726399295045,0.173046,60090.0,60089.0,0.45194194]
[1726399295916,0.173046,60090.0,60089.0,0.35201731]
[1726399296141,0.173046,60090.0,60089.0,0.45194194]
[1726399297045,0.173046,60090.0,60089.0,0.42878761]
[1726399297264,0.19916556,60090.0,60089.0,0.42878761]
[1726399297488,0.173046,60090.0,60089.0,0.42878761]
[1726399298392,0.173046,60090.0,60089.0,0.32886298]
[1726399299104,0.097346,60090.0,60089.0,0.45878761]
[1726399299335,0.002646,60090.0,60089.0,0.35893148]
[1726399300074,0.002646,60090.0,60089.0,0.35894514]
[1726399303689,0.002646,60090.0,60089.0,0.48388851]
[1726399304369,0.002646,60090.0,60089.0,0.35894514]
[1726399304632,0.002646,60090.0,60089.0,0.35894865]
[1726399305529,0.002646,60090.0,60089.0,0.48389202]
[1726399306436,0.002646,60090.0,60089.0,0.48387822]
[1726399309167,0.002646,60090.0,60089.0,0.48393851]
[1726399311233,0.02876458,60090.0,60089.0,0.48393851]
[1726399311889,0.12336458,60090.0,60089.0,0.48393851]
[1726399313567,0.12336458,60090.0,60089.0,0.48386503]
[1726399314040,0.12336458,60090.0,60089.0,0.48240374]
[1726399314245,0.097246,60090.0,60089.0,0.48240374]
[1726399317134,0.12336499,60090.0,60089.0,0.48240374]
[1726399317647,0.097246,60090.0,60089.0,0.48245599]
[1726399319106,0.097246,60090.0,60089.0,0.4826347]
[1726399319575,0.097246,60090.0,60089.0,0.35763046]
[1726399320059,0.097246,60090.0,60089.0,0.48264003]
[1726399320853,0.097246,60090.0,60089.0,0.35763046]
[1726399320854,0.20256491,60090.0,60089.0,0.35763046]
[1726399321109,0.20256491,60090.0,60089.0,0.48262233]
[1726399321345,0.20256491,60090.0,60089.0,0.45262233]
[1726399321609,0.20256491,60090.0,60089.0,0.35761276]
[1726399321804,0.20256491,60090.0,60089.0,0.48262233]
[1726399322321,0.20256491,60090.0,60089.0,0.48145202]
[1726399322557,0.20256491,60090.0,60089.0,0.35643553]
[1726399324038,0.20256491,60090.0,60089.0,0.3563831]
[1726399324297,0.176446,60090.0,60089.0,0.3563831]
[1726399324533,0.002646,60090.0,60089.0,0.39324626]
[1726399325530,0.097246,60090.0,60089.0,0.39324626]
[1726399326889,0.176446,60090.0,60089.0,0.39324626]
[1726399327118,0.176446,60090.0,60089.0,0.39299577]
[1726399327357,0.2025648,60090.0,60089.0,0.46502754]
[1726399327624,0.2025648,60090.0,60089.0,0.04904608]
[1726399327857,0.2025648,60090.0,60089.0,0.09906231]
[1726399328077,0.2025648,60090.0,60089.0,0.12199557]
[1726399328303,0.2025648,60090.0,60089.0,0.08506231]
[1726399328528,0.2025648,60090.0,60089.0,0.07206231]
[1726399328529,0.2015648,60090.0,60089.0,0.07206231]
[1726399328756,0.2015648,60090.0,60089.0,0.09706231]
[1726399328949,0.2015648,60090.0,60089.0,0.04504608]
[1726399329213,0.2015648,60090.0,60089.0,0.09906231]
[1726399329473,0.2035648,60090.0,60089.0,0.04904608]
[1726399329735,0.2035648,60090.0,60089.0,0.09906231]
[1726399329950,0.2035648,60090.0,60089.0,0.04904608]
[1726399330417,0.2035648,60090.0,60089.0,0.04504608]
[1726399333001,0.2035648,60090.0,60089.0,0.09506231]
[1726399334119,0.177446,60090.0,60089.0,0.09506231]
[1726399335015,0.177446,60090.0,60089.0,0.04504608]
[1726399335332,0.177446,60090.0,60089.0,0.09506231]
[1726399335532,0.177446,60090.0,60089.0,0.11788339]
[1726399335788,0.177446,60090.0,60089.0,0.06789549]
[1726399336014,0.177446,60090.0,60089.0,0.1178828]
[1726399336455,0.177446,60090.0,60089.0,0.09503339]
[1726399336699,0.177446,60090.0,60089.0,0.11787668]
[1726399336937,0.177446,60090.0,60089.0,0.11787588]
[1726399337200,0.177446,60090.0,60089.0,0.09503259]
[1726399337201,0.20356661,60090.0,60089.0,0.09503259]
[1726399337407,0.20356661,60090.0,60089.0,0.04504608]
[1726399339314,0.20356661,60090.0,60089.0,0.09503259]
[1726399339556,0.20356661,60090.0,60089.0,0.04504608]
[1726399341189,0.22856661,60090.0,60089.0,0.02204608]
[1726399341451,0.22856661,60090.0,60086.0,0.000823]
[1726399341452,0.1738,60089.0,60086.0,0.000823]
[1726399341734,0.2008,60087.0,60086.0,0.000823]
[1726399342193,0.1988,60087.0,60086.0,0.000823]
[1726399344525,0.1988,60087.0,60086.0,0.001823]
[1726399344947,0.1988,60087.0,60086.0,0.004823]
[1726399345386,0.1988,60087.0,60086.0,0.000823]
[1726399345598,0.2058,60087.0,60086.0,0.001823]
[1726399345820,0.2108,60087.0,60086.0,0.001823]
[1726399346038,0.2038,60087.0,60086.0,0.000823]
[1726399346258,0.2138,60087.0,60086.0,0.001823]
[1726399346925,0.2088,60087.0,60086.0,0.001823]
[1726399347140,0.2349238,60087.0,60086.0,0.001823]
[1726399347354,0.2429238,60087.0,60086.0,0.002823]
[1726399347609,0.2349238,60087.0,60086.0,0.001823]
[1726399348031,0.2349238,60087.0,60086.0,0.000823]
[1726399348270,0.2429238,60087.0,60086.0,0.001823]
[1726399348485,0.2519238,60087.0,60086.0,0.002823]
[1726399348710,0.2249238,60087.0,60086.0,0.000823]
[1726399348936,0.2249238,60087.0,60086.0,0.001823]
[1726399348937,0.2319238,60087.0,60086.0,0.001823]
[1726399349150,0.2409238,60087.0,60086.0,0.002823]
[1726399349416,0.2409238,60087.0,60086.0,0.001823]
[1726399350266,0.2339238,60087.0,60086.0,0.000823]
[1726399350529,0.2379238,60087.0,60086.0,0.000823]
[1726399350804,0.2439238,60087.0,60086.0,0.001823]
[1726399354050,0.2178,60087.0,60086.0,0.001823]
[1726399354897,0.2178,60087.0,60086.0,0.024823]
[1726399357045,0.2439229,60087.0,60086.0,0.024823]
[1726399357424,0.2178,60087.0,60086.0,0.024823]
[1726399358314,0.2178,60087.0,60086.0,0.04690185]
[1726399360400,0.2439229,60087.0,60086.0,0.04690185]
[1726399360629,0.2439229,60087.0,60086.0,0.024823]
[1726399363123,0.2455689,60087.0,60086.0,0.024823]
[1726399364235,0.219446,60087.0,60086.0,0.024823]
[1726399367355,0.219446,60087.0,60086.0,0.04690185]
[1726399367574,0.2455686,60087.0,60086.0,0.04690185]
[1726399367789,0.2455686,60087.0,60086.0,0.024823]
[1726399371101,0.2455686,60087.0,60086.0,0.04690185]
[1726399371533,0.2305686,60087.0,60086.0,0.04590185]
[1726399371740,0.2305686,60087.0,60086.0,0.023823]
[1726399371954,0.2335686,60087.0,60086.0,0.000823]
[1726399372192,0.2295686,60087.0,60086.0,0.023823]
[1726399372445,0.2265686,60087.0,60086.0,0.04590185]
[1726399372664,0.2305686,60087.0,60086.0,0.05090185]
[1726399372897,0.2265686,60087.0,60086.0,0.05090185]
[1726399373391,0.2275686,60087.0,60086.0,0.05690185]
[1726399374111,0.201446,60087.0,60086.0,0.05690185]
[1726399377471,0.22756865,60087.0,60086.0,0.05690185]
[1726399377712,0.201446,60087.0,60086.0,0.05690185]
[1726399380522,0.22756867,60087.0,60086.0,0.05690185]
[1726399384212,0.201446,60087.0,60086.0,0.05690185]
[1726399387202,0.22756875,60087.0,60086.0,0.05690185]
[1726399387413,0.201446,60087.0,60086.0,0.05690185]
[1726399387849,0.22756875,60087.0,60086.0,0.05690185]
[1726399394197,0.201446,60087.0,60086.0,0.05690185]
[1726399397102,0.22756882,60087.0,60086.0,0.05690185]
[1726399397449,0.201446,60087.0,60086.0,0.05690185]
[1726399400580,0.22756882,60087.0,60086.0,0.05690185]
[1726399404397,0.201446,60087.0,60086.0,0.05690185]
[1726399407464,0.22756889,60087.0,60086.0,0.05690185]
[1726399407699,0.201446,60087.0,60086.0,0.05690185]
[1726399410665,0.22756889,60087.0,60086.0,0.05690185]
[1726399414288,0.201446,60087.0,60086.0,0.05690185]
[1726399414991,0.203446,60087.0,60086.0,0.05690185]
[1726399416550,0.201446,60087.0,60086.0,0.05690185]
[1726399416781,0.20560715,60087.0,60086.0,0.05690185]
[1726399416999,0.20760715,60087.0,60086.0,0.05690185]
[1726399417226,0.23373004,60087.0,60086.0,0.05690185]
[1726399417663,0.20760715,60087.0,60086.0,0.034823]
[1726399417852,0.22956889,60087.0,60086.0,0.034823]
[1726399418080,0.22956889,60087.0,60086.0,0.05690185]
[1726399418855,0.22756889,60087.0,60086.0,0.05690185]
[1726399419114,0.23173004,60087.0,60086.0,0.05690185]
[1726399419843,0.22756889,60087.0,60086.0,0.05690185]
[1726399421529,0.22756889,60087.0,60086.0,0.05404503]
[1726399421772,0.22756889,60087.0,60086.0,0.034823]
[1726399421995,0.22756889,60087.0,60086.0,0.05690185]
[1726399424316,0.201446,60087.0,60086.0,0.05690185]
[1726399427497,0.22756889,60087.0,60086.0,0.05690185]
[1726399427727,0.201446,60087.0,60086.0,0.05690185]
[1726399430449,0.22756889,60087.0,60086.0,0.05690185]
[1726399431322,0.14836889,60087.0,60086.0,0.05690185]
[1726399432954,0.14836889,60087.0,60086.0,0.034823]
[1726399433172,0.14836889,60087.0,60086.0,0.05690185]
[1726399434051,0.122246,60087.0,60086.0,0.05690185]
[1726399437094,0.14836889,60087.0,60086.0,0.05690185]
[1726399437971,0.14736889,60087.0,60086.0,0.05090185]
[1726399438206,0.122246,60087.0,60086.0,0.05090185]
[1726399439082,0.125246,60087.0,60086.0,0.05090185]
[1726399439597,0.124246,60087.0,60086.0,0.05090185]
[1726399440537,0.125246,60087.0,60086.0,0.05090185]
[1726399441208,0.15136889,60087.0,60086.0,0.05090185]
[1726399444148,0.15336889,60087.0,60086.0,0.05090185]
[1726399444349,0.127246,60087.0,60086.0,0.05090185]
[1726399444685,0.125246,60087.0,60086.0,0.05090185]
[1726399447323,0.15136889,60087.0,60086.0,0.05090185]
[1726399447545,0.125246,60087.0,60086.0,0.05090185]
[1726399449346,0.127246,60087.0,60086.0,0.05090185]
[1726399450455,0.15336889,60087.0,60086.0,0.05090185]
[1726399452640,0.23116889,60087.0,60086.0,0.05090185]
[1726399454353,0.205046,60087.0,60086.0,0.05090185]
[1726399456775,0.030646,60087.0,60086.0,0.05090185]
[1726399457478,0.05676889,60087.0,60086.0,0.05090185]
[1726399464335,0.030646,60087.0,60086.0,0.05090185]
[1726399467484,0.05676889,60087.0,60086.0,0.05090185]
[1726399468476,0.15636889,60087.0,60086.0,0.05090185]
[1726399474137,0.130246,60087.0,60086.0,0.05090185]
[1726399477454,0.15636889,60087.0,60086.0,0.05090185]
[1726399478719,0.15836889,60087.0,60086.0,0.05090185]
[1726399479204,0.15636889,60087.0,60086.0,0.05090185]
[1726399484131,0.130246,60087.0,60086.0,0.05090185]
[1726399486128,0.213346,60087.0,60086.0,0.05090185]
[1726399487257,0.23946889,60087.0,60086.0,0.05090185]
[1726399488188,0.213346,60087.0,60086.0,0.05090185]
[1726399490568,0.23946889,60087.0,60086.0,0.05090185]
[1726399493246,0.23946889,60087.0,60086.0,0.4046788]